bitfinex-derivatives/quotes_BNBF0:USTF0_20250904
["timestamp","ask_amount","ask_price","bid_price","bid_amount"]
[1757027582414,0.71143586,848.53,847.78,1.5930455]
[1757027582618,0.71143586,848.52,847.78,1.5930455]
[1757027582812,0.71143586,848.51,847.78,1.5930455]
[1757027583014,0.71143586,848.5,847.77,1.5930455]
[1757027583216,0.71143586,848.49,847.78,1.5930455]
[1757027583416,0.71143586,848.48,847.78,1.5930455]
[1757027583718,0.79348833,848.65,847.78,1.5930455]
[1757027583719,0.71143586,848.47,847.78,1.5930455]
[1757027583918,0.71143586,848.46,847.78,1.5930455]
[1757027584116,0.71143586,848.45,847.78,1.5930455]
[1757027584320,0.71143586,848.44,847.78,1.5930455]
[1757027584526,0.71143586,848.43,847.78,1.5930455]
[1757027584819,0.71143586,848.42,847.78,1.5930455]
[1757027585021,0.71143586,848.41,847.78,1.5930455]
[1757027585220,0.71143586,848.4,847.78,1.5930455]
[1757027585420,0.71143586,848.39,847.78,1.5930455]
[1757027585617,0.71143586,848.38,847.78,1.5930455]
[1757027585820,0.79348833,848.65,847.78,1.5930455]
[1757027586020,0.71134929,848.64,847.78,1.5930455]
[1757027586316,0.71134929,848.63,847.78,1.5930455]
[1757027586517,0.71134929,848.62,847.76,1.5930455]
[1757027586719,0.71134929,848.61,847.76,1.5930455]
[1757027586916,0.71134929,848.6,847.76,1.5930455]
[1757027587121,0.71134929,848.6,847.27,0.20509133]
[1757027587122,0.71134929,848.59,847.8,1.5930455]
[1757027587320,0.71134929,848.58,847.8,1.5930455]
[1757027587519,0.71134929,848.57,847.8,1.5930455]
[1757027587717,0.71134929,848.56,847.77,1.5930455]
[1757027587919,0.71134929,848.55,847.78,1.5930455]
[1757027588215,0.71134929,848.54,847.78,1.5930455]
[1757027588420,0.71134929,848.53,847.78,1.5930455]
[1757027588616,0.71134929,848.52,847.76,1.5930455]
[1757027588820,0.71134929,848.51,847.76,1.5930455]
[1757027589116,0.71134929,848.5,847.68,1.5930455]
[1757027589417,0.71134929,848.49,847.66,1.5930455]
[1757027589616,0.71134929,848.48,847.66,1.5930455]
[1757027589820,0.71134929,848.47,847.65,1.5930455]
[1757027590027,0.71134929,848.46,847.65,1.5930455]
[1757027590217,0.71134929,848.45,847.65,1.5930455]
[1757027590419,0.71134929,848.44,847.65,1.5930455]
[1757027590618,0.71134929,848.43,847.65,1.5930455]
[1757027590918,0.71134929,848.42,847.65,1.5930455]
[1757027591118,0.71134929,848.41,847.65,1.5930455]
[1757027591318,0.71134929,848.4,847.65,1.5930455]
[1757027591523,0.71134929,848.39,847.65,1.5930455]
[1757027591719,0.79348833,848.58,847.65,1.5930455]
[1757027591720,0.71134929,848.38,847.65,1.5930455]
[1757027591923,0.71134929,848.37,847.65,1.5930455]
[1757027592223,0.71134929,848.36,847.65,1.5930455]
[1757027592423,0.71134929,848.35,847.65,1.5930455]
[1757027592619,0.71134929,848.34,847.65,1.5930455]
[1757027592833,0.71134929,848.33,847.65,1.5930455]
[1757027593022,0.71134929,848.32,847.64,1.5930455]
[1757027593221,0.71134929,848.31,847.66,1.5930455]
[1757027593424,0.71134929,848.3,847.67,1.5930455]
[1757027593622,0.71134929,848.29,847.67,1.5930455]
[1757027593821,0.79348833,848.57,847.67,1.5930455]
[1757027594122,0.71104444,848.56,847.67,1.5930455]
[1757027594428,0.79348833,848.57,847.67,1.5930455]
[1757027594429,0.71104444,848.55,847.67,1.5930455]
[1757027594725,0.71104444,848.54,847.67,1.5930455]
[1757027594932,0.71104444,848.53,847.67,1.5930455]
[1757027595126,0.71104444,848.52,847.67,1.5930455]
[1757027595326,0.71104444,848.51,847.67,1.5930455]
[1757027595626,0.71104444,848.5,847.67,1.5930455]
[1757027595825,0.71104444,848.49,847.67,1.5930455]
[1757027596022,0.71104444,848.48,847.66,1.5930455]
[1757027596222,0.71104444,848.47,847.66,1.5930455]
[1757027596425,0.71104444,848.46,847.66,1.5930455]
[1757027596622,0.71104444,848.45,847.66,1.5930455]
[1757027596826,0.71104444,848.44,847.66,1.5930455]
[1757027597127,0.71104444,848.43,847.68,1.5930455]
[1757027597325,0.71104444,848.42,847.68,1.5930455]
[1757027597532,0.71104444,848.41,847.68,1.5930455]
[1757027597730,0.71104444,848.4,847.68,1.5930455]
[1757027597930,0.71104444,848.39,847.67,1.5930455]
[1757027598133,0.71104444,848.38,847.67,1.5930455]
[1757027598332,0.71104444,848.37,847.67,1.5930455]
[1757027598534,0.71104444,848.36,847.67,1.5930455]
[1757027598735,0.71104444,848.35,847.67,1.5930455]
[1757027598932,0.71104444,848.34,847.67,1.5930455]
[1757027599130,0.71104444,848.33,847.67,1.5930455]
[1757027599336,0.71104444,848.32,847.67,1.5930455]
[1757027599536,0.71104444,848.31,847.67,1.5930455]
[1757027599734,0.71104444,848.3,847.67,1.5930455]
[1757027599934,0.71104444,848.29,847.67,1.5930455]
[1757027600135,0.79348833,848.57,847.67,1.5930455]
[1757027600337,0.79348833,848.57,847.27,0.20509133]
[1757027600338,0.71106997,848.56,847.68,1.5930455]
[1757027600538,0.71106997,848.55,847.69,1.5930455]
[1757027600838,0.71106997,848.54,847.69,1.5930455]
[1757027601035,0.71106997,848.53,847.69,1.5930455]
[1757027601338,0.71106997,848.52,847.69,1.5930455]
[1757027601538,0.71106997,848.51,847.7,1.5930455]
[1757027601841,0.71106997,848.5,847.7,1.5930455]
[1757027602039,0.71106997,848.49,847.7,1.5930455]
[1757027602240,0.71106997,848.48,847.7,1.5930455]
[1757027602540,0.79348833,848.57,847.7,1.5930455]
[1757027602541,0.71106997,848.47,847.7,1.5930455]
[1757027602738,0.71106997,848.46,847.7,1.5930455]
[1757027602937,0.71106997,848.45,847.7,1.5930455]
[1757027603140,0.71106997,848.44,847.71,1.5930455]
[1757027603340,0.71106997,848.43,847.72,1.5930455]
[1757027603539,0.20509677,848.75,847.73,1.5930455]
[1757027603540,0.71106997,848.42,847.73,1.5930455]
[1757027603739,0.71106997,848.41,847.73,1.5930455]
[1757027603937,0.71106997,848.4,847.73,1.5930455]
[1757027604137,0.71106997,848.39,847.73,1.5930455]
[1757027604341,0.71106997,848.38,847.73,1.5930455]
[1757027604537,0.71106997,848.37,847.73,1.5930455]
[1757027604840,0.71106997,848.36,847.72,1.5930455]
[1757027605042,0.71106997,848.35,847.72,1.5930455]
[1757027605253,0.71106997,848.34,847.72,1.5930455]
[1757027605541,0.71106997,848.33,847.72,1.5930455]
[1757027605842,0.71106997,848.32,847.71,1.5930455]
[1757027606040,0.71106997,848.31,847.72,1.5930455]
[1757027606334,0.71106997,848.3,847.72,1.5930455]
[1757027606539,0.71106997,848.29,847.72,1.5930455]
[1757027606837,0.79348833,848.55,847.72,1.5930455]
[1757027607142,0.71111164,848.54,847.72,1.5930455]
[1757027607340,0.71111164,848.53,847.73,1.5930455]
[1757027607537,0.71111164,848.52,847.73,1.5930455]
[1757027607841,0.71111164,848.51,847.75,1.5930455]
[1757027608042,0.71111164,848.5,847.75,1.5930455]
[1757027608237,0.71111164,848.49,847.75,1.5930455]
[1757027608441,0.71111164,848.48,847.75,1.5930455]
[1757027608641,0.71111164,848.47,847.75,1.5930455]
[1757027608841,0.71111164,848.46,847.75,1.5930455]
[1757027609140,0.71111164,848.45,847.75,1.5930455]
[1757027609341,0.71111164,848.44,847.75,1.5930455]
[1757027609542,0.71111164,848.43,847.75,1.5930455]
[1757027609841,0.71111164,848.42,847.75,1.5930455]
[1757027610137,0.71111164,848.41,847.75,1.5930455]
[1757027610338,0.71111164,848.4,847.74,1.5930455]
[1757027610638,0.71111164,848.39,847.75,1.5930455]
[1757027610844,0.71111164,848.38,847.75,1.5930455]
[1757027611038,0.71111164,848.37,847.75,1.5930455]
[1757027611342,0.71111164,848.36,847.75,1.5930455]
[1757027611538,0.71111164,848.35,847.75,1.5930455]
[1757027611743,0.71111164,848.34,847.75,1.5930455]
[1757027611943,0.71111164,848.33,847.75,1.5930455]
[1757027612144,0.71111164,848.32,847.75,1.5930455]
[1757027612345,0.71111164,848.31,847.75,1.5930455]
[1757027612546,0.71111164,848.3,847.75,1.5930455]
[1757027612740,0.71111164,848.29,847.75,1.5930455]
[1757027612939,0.79348833,848.54,847.75,1.5930455]
[1757027613143,0.71111309,848.53,847.75,1.5930455]
[1757027613345,0.71111309,848.52,847.75,1.5930455]
[1757027613542,0.71111309,848.51,847.65,1.5930455]
[1757027613740,0.71111309,848.5,847.65,1.5930455]
[1757027613942,0.71111309,848.49,847.65,1.5930455]
[1757027614147,0.71111309,848.48,847.65,1.5930455]
[1757027614346,0.71111309,848.47,847.65,1.5930455]
[1757027614553,0.71111309,848.46,847.65,1.5930455]
[1757027614744,0.71111309,848.45,847.65,1.5930455]
[1757027614942,0.79348833,848.59,847.65,1.5930455]
[1757027614943,0.71111309,848.44,847.65,1.5930455]
[1757027615242,0.71111309,848.43,847.65,1.5930455]
[1757027615446,0.71111309,848.42,847.65,1.5930455]
[1757027615648,0.71111309,848.41,847.65,1.5930455]
[1757027615843,0.79348833,848.59,847.66,1.5930455]
[1757027615844,0.71111309,848.4,847.66,1.5930455]
[1757027616048,0.71111309,848.39,847.66,1.5930455]
[1757027616350,0.71111309,848.38,847.66,1.5930455]
[1757027616570,0.71111309,848.37,847.66,1.5930455]
[1757027616747,0.71111309,848.36,847.66,1.5930455]
[1757027616948,0.71111309,848.35,847.66,1.5930455]
[1757027617148,0.71111309,848.34,847.66,1.5930455]
[1757027617348,0.71111309,848.33,847.66,1.5930455]
[1757027617549,0.71111309,848.32,847.66,1.5930455]
[1757027617756,0.71111309,848.31,847.66,1.5930455]
[1757027617952,0.71111309,848.3,847.66,1.5930455]
[1757027618150,0.71111309,848.29,847.66,1.5930455]
[1757027618348,0.79348833,848.59,847.66,1.5930455]
[1757027618558,0.7111122,848.58,847.66,1.5930455]
[1757027618748,0.7111122,848.57,847.66,1.5930455]
[1757027619054,0.7111122,848.56,847.65,1.5930455]
[1757027619248,0.7111122,848.55,847.65,1.5930455]
[1757027619548,0.7111122,848.54,847.65,1.5930455]
[1757027619751,0.7111122,848.53,847.65,1.5930455]
[1757027620048,0.7111122,848.52,847.65,1.5930455]
[1757027620247,0.7111122,848.51,847.65,1.5930455]
[1757027620446,0.7111122,848.5,847.65,1.5930455]
[1757027620645,0.7111122,848.49,847.65,1.5930455]
[1757027620855,0.7111122,848.48,847.65,1.5930455]
[1757027621147,0.7111122,848.47,847.65,1.5930455]
[1757027621347,0.7111122,848.46,847.65,1.5930455]
[1757027621548,0.7111122,848.45,847.65,1.5930455]
[1757027621848,0.7111122,848.44,847.65,1.5930455]
[1757027622048,0.7111122,848.43,847.65,1.5930455]
[1757027622250,0.7111122,848.42,847.66,1.5930455]
[1757027622451,0.7111122,848.41,847.66,1.5930455]
[1757027622652,0.7111122,848.4,847.66,1.5930455]
[1757027622952,0.7111122,848.39,847.66,1.5930455]
[1757027623150,0.7111122,848.38,847.66,1.5930455]
[1757027623451,0.7111122,848.37,847.75,1.5930455]
[1757027623651,0.7111122,848.36,847.75,1.5930455]
[1757027623851,0.7111122,848.35,847.75,1.5930455]
[1757027624047,0.7111122,848.34,847.75,1.5930455]
[1757027624248,0.7111122,848.33,847.75,1.5930455]
[1757027624454,0.7111122,848.32,847.75,1.5930455]
[1757027624652,0.7111122,848.31,847.75,1.5930455]
[1757027624948,0.7111122,848.3,847.74,1.5930455]
[1757027625252,0.7111122,848.29,847.73,1.5930455]
[1757027625452,0.79348833,848.55,847.73,1.5930455]
[1757027625650,0.71110677,848.54,847.73,1.5930455]
[1757027625848,0.71110677,848.53,847.73,1.5930455]
[1757027626049,0.71110677,848.52,847.73,1.5930455]
[1757027626252,0.71110677,848.51,847.73,1.5930455]
[1757027626454,0.71110677,848.5,847.73,1.5930455]
[1757027626653,0.71110677,848.49,847.73,1.5930455]
[1757027626854,0.71110677,848.48,847.73,1.5930455]
[1757027627152,0.71110677,848.47,847.73,1.5930455]
[1757027627356,0.71110677,848.46,847.73,1.5930455]
[1757027627551,0.71110677,848.45,847.73,1.5930455]
[1757027627755,0.71110677,848.44,847.73,1.5930455]
[1757027627954,0.20509677,848.75,847.27,0.20509133]
[1757027627955,0.71110677,848.43,847.69,1.5930455]
[1757027628155,0.71110677,848.42,847.69,1.5930455]
[1757027628456,0.71110677,848.41,847.69,1.5930455]
[1757027628656,0.71110677,848.4,847.69,1.5930455]
[1757027628855,0.71110677,848.39,847.71,1.5930455]
[1757027629152,0.71110677,848.38,847.71,1.5930455]
[1757027629355,0.71110677,848.37,847.7,1.5930455]
[1757027629556,0.71110677,848.36,847.67,1.5930455]
[1757027629754,0.71110677,848.35,847.67,1.5930455]
[1757027629958,0.71110677,848.34,847.67,1.5930455]
[1757027630156,0.71110677,848.33,847.67,1.5930455]
[1757027630354,0.71110677,848.32,847.67,1.5930455]
[1757027630555,0.71110677,848.31,847.67,1.5930455]
[1757027630753,0.71110677,848.3,847.67,1.5930455]
[1757027630955,0.71110677,848.29,847.67,1.5930455]
[1757027631163,0.79348833,848.58,847.67,1.5930455]
[1757027631454,0.71117786,848.57,847.67,1.5930455]
[1757027631657,0.71117786,848.56,847.67,1.5930455]
[1757027631855,0.71117786,848.55,847.67,1.5930455]
[1757027632155,0.71117786,848.54,847.67,1.5930455]
[1757027632354,0.71117786,848.53,847.68,1.5930455]
[1757027632558,0.71117786,848.53,847.27,0.20509133]
[1757027632559,0.71117786,848.52,847.67,1.5930455]
[1757027632759,0.71117786,848.51,847.67,1.5930455]
[1757027633064,0.71117786,848.5,847.67,1.5930455]
[1757027633260,0.71117786,848.49,847.67,1.5930455]
[1757027633560,0.71117786,848.48,847.67,1.5930455]
[1757027633758,0.71117786,848.47,847.67,1.5930455]
[1757027633961,0.71117786,848.46,847.67,1.5930455]
[1757027634256,0.71117786,848.45,847.67,1.5930455]
[1757027634461,0.71117786,848.44,847.66,1.5930455]
[1757027634661,0.71117786,848.43,847.66,1.5930455]
[1757027634858,0.71117786,848.42,847.67,1.5930455]
[1757027635058,0.71117786,848.41,847.67,1.5930455]
[1757027635358,0.71117786,848.4,847.67,1.5930455]
[1757027635561,0.71117786,848.39,847.67,1.5930455]
[1757027635858,0.71117786,848.38,847.67,1.5930455]
[1757027636057,0.71117786,848.37,847.67,1.5930455]
[1757027636357,0.71117786,848.36,847.67,1.5930455]
[1757027636559,0.71117786,848.35,847.67,1.5930455]
[1757027636758,0.71117786,848.34,847.67,1.5930455]
[1757027636958,0.71117786,848.33,847.67,1.5930455]
[1757027637260,0.71117786,848.32,847.68,1.5930455]
[1757027637461,0.71117786,848.31,847.68,1.5930455]
[1757027637659,0.71117786,848.3,847.7,1.5930455]
[1757027637857,0.71117786,848.29,847.7,1.5930455]
[1757027638061,0.71117786,848.28,847.7,1.5930455]
[1757027638259,0.79348833,848.56,847.7,1.5930455]
[1757027638459,1.5048735,848.55,847.7,1.5930455]
[1757027638663,0.71138517,848.54,847.7,1.5930455]
[1757027638860,0.71138517,848.53,847.7,1.5930455]
[1757027639063,0.71138517,848.52,847.7,1.5930455]
[1757027639260,0.71138517,848.51,847.7,1.5930455]
[1757027639464,0.71138517,848.5,847.74,1.5930455]
[1757027639667,0.71138517,848.49,847.74,1.5930455]
[1757027639962,0.71138517,848.48,847.74,1.5930455]
[1757027640265,0.71138517,848.47,847.74,1.5930455]
[1757027640465,0.71138517,848.46,847.74,1.5930455]
[1757027640762,0.71138517,848.45,847.74,1.5930455]
[1757027640964,0.71138517,848.44,847.74,1.5930455]
[1757027641165,0.71138517,848.43,847.74,1.5930455]
[1757027641366,0.71138517,848.42,847.75,1.5930455]
[1757027641566,0.71138517,848.41,847.75,1.5930455]
[1757027641765,0.71138517,848.4,847.74,1.5930455]
[1757027642063,0.71138517,848.39,847.74,1.5930455]
[1757027642363,0.71138517,848.38,847.76,1.5930455]
[1757027642562,0.71138517,848.37,847.77,1.5930455]
[1757027642766,0.71138517,848.36,847.77,1.5930455]
[1757027642966,0.71138517,848.35,847.76,1.5930455]
[1757027643266,0.71138517,848.34,847.77,1.5930455]
[1757027643577,0.71138517,848.33,847.77,1.5930455]
[1757027643764,0.71138517,848.32,847.77,1.5930455]
[1757027643963,0.71138517,848.31,847.77,1.5930455]
[1757027644167,0.71138517,848.3,847.76,1.5930455]
[1757027644368,0.71138517,848.29,847.78,1.5930455]
[1757027644564,0.71138517,848.28,847.78,1.5930455]
[1757027644863,0.71138517,848.27,847.77,1.5930455]
[1757027645068,0.71138517,848.26,847.77,1.5930455]
[1757027645374,0.79348833,848.5,847.78,1.5930455]
[1757027645569,0.71172585,848.49,847.78,1.5930455]
[1757027645764,0.71172585,848.48,847.78,1.5930455]
[1757027646063,0.71172585,848.47,847.78,1.5930455]
[1757027646266,0.71172585,848.46,847.79,1.5930455]
[1757027646568,0.71172585,848.45,847.79,1.5930455]
[1757027646763,0.71172585,848.44,847.79,1.5930455]
[1757027646967,0.71172585,848.43,847.78,1.5930455]
[1757027647167,0.71172585,848.42,847.78,1.5930455]
[1757027647362,0.71172585,848.41,847.78,1.5930455]
[1757027647567,0.71172585,848.4,847.78,1.5930455]
[1757027647769,0.71172585,848.39,847.78,1.5930455]
[1757027648064,0.71172585,848.38,847.78,1.5930455]
[1757027648371,0.71172585,848.37,847.79,1.5930455]
[1757027648666,0.71172585,848.36,847.79,1.5930455]
[1757027648869,0.71172585,848.35,847.79,1.5930455]
[1757027649069,0.71172585,848.34,847.79,1.5930455]
[1757027649368,0.71172585,848.33,847.79,1.5930455]
[1757027649568,0.71172585,848.32,847.79,1.5930455]
[1757027649770,0.71172585,848.31,847.79,1.5930455]
[1757027649968,0.71172585,848.3,847.79,1.5930455]
[1757027650167,0.71172585,848.29,847.79,1.5930455]
[1757027650370,0.71172585,848.28,847.79,1.5930455]
[1757027650565,0.71172585,848.27,847.79,1.5930455]
[1757027650784,0.71172585,848.26,847.79,1.5930455]
[1757027650966,0.71172585,848.25,847.79,1.5930455]
[1757027651170,0.71172585,848.24,847.79,1.5930455]
[1757027651471,0.79348833,848.5,847.79,1.5930455]
[1757027651671,0.71137827,848.49,847.51,1.5930455]
[1757027651868,0.71137827,848.48,847.58,1.5930455]
[1757027652072,0.71137827,848.47,847.58,1.5930455]
[1757027652274,0.71137827,848.46,847.57,1.5930455]
[1757027652572,0.71137827,848.45,847.57,1.5930455]
[1757027652769,0.71137827,848.44,847.57,1.5930455]
[1757027652969,0.71137827,848.43,847.57,1.5930455]
[1757027653170,0.71137827,848.42,847.57,1.5930455]
[1757027653371,0.71137827,848.41,847.57,1.5930455]
[1757027653570,0.71137827,848.4,847.57,1.5930455]
[1757027653775,0.71137827,848.39,847.57,1.5930455]
[1757027653972,0.71137827,848.38,847.57,1.5930455]
[1757027654173,0.71137827,848.37,847.57,1.5930455]
[1757027654379,0.9985851,848.75,847.56,1.5930455]
[1757027654380,0.71137827,848.36,847.56,1.5930455]
[1757027654674,0.71137827,848.35,847.56,1.5930455]
[1757027654874,0.71137827,848.34,847.56,1.5930455]
[1757027655071,0.71137827,848.33,847.56,1.5930455]
[1757027655280,0.9985851,848.75,847.56,1.5930455]
[1757027655475,0.71085562,848.74,847.55,1.5930455]
[1757027655672,0.71085562,848.73,847.55,1.5930455]
[1757027655875,0.71085562,848.72,847.55,1.5930455]
[1757027656072,0.71085562,848.71,847.55,1.5930455]
[1757027656376,0.71085562,848.7,847.55,1.5930455]
[1757027656576,0.71085562,848.69,847.55,1.5930455]
[1757027656871,0.71085562,848.68,847.54,1.5930455]
[1757027657075,0.71085562,848.67,847.54,1.5930455]
[1757027657376,0.71085562,848.66,847.54,1.5930455]
[1757027657675,0.71085562,848.65,847.54,1.5930455]
[1757027657876,0.71085562,848.64,847.54,1.5930455]
[1757027658070,0.71085562,848.63,847.54,1.5930455]
[1757027658274,0.20509677,848.75,847.54,1.5930455]
[1757027658275,0.71085562,848.62,847.54,1.5930455]
[1757027658471,0.71085562,848.61,847.54,1.5930455]
[1757027658676,0.71085562,848.6,847.54,1.5930455]
[1757027658873,0.71085562,848.59,847.54,1.5930455]
[1757027659075,0.20509677,848.75,847.54,1.5930455]
[1757027659076,0.71085562,848.58,847.54,1.5930455]
[1757027659277,0.71085562,848.57,847.53,1.5930455]
[1757027659571,0.71085562,848.56,847.53,1.5930455]
[1757027659776,0.71085562,848.55,847.53,1.5930455]
[1757027660072,0.71085562,848.54,847.53,1.5930455]
[1757027660272,0.71085562,848.53,847.53,1.5930455]
[1757027660474,0.71085562,848.52,847.53,1.5930455]
[1757027660677,0.71085562,848.51,847.53,1.5930455]
[1757027660878,0.71085562,848.5,847.53,1.5930455]
[1757027661074,0.20509677,848.75,847.53,1.5930455]
[1757027661075,0.71085562,848.49,847.53,1.5930455]
[1757027661281,0.71085562,848.48,847.53,1.5930455]
[1757027661481,0.71085562,848.47,847.53,1.5930455]
[1757027661781,0.71085562,848.46,847.69,1.5930455]
[1757027661981,0.71085562,848.45,847.69,1.5930455]
[1757027662189,0.71085562,848.44,847.69,1.5930455]
[1757027662381,0.71085562,848.43,847.69,1.5930455]
[1757027662583,0.71085562,848.42,847.69,1.5930455]
[1757027662882,0.71085562,848.41,847.69,1.5930455]
[1757027663182,0.71085562,848.4,847.69,1.5930455]
[1757027663383,0.71085562,848.39,847.68,1.5930455]
[1757027663582,0.71085562,848.38,847.68,1.5930455]
[1757027663786,0.71085562,848.37,847.68,1.5930455]
[1757027663986,0.71085562,848.36,847.71,1.5930455]
[1757027664183,0.71085562,848.35,847.7,1.5930455]
[1757027664484,0.79348833,848.67,847.69,1.5930455]
[1757027664683,0.71054153,848.66,847.69,1.5930455]
[1757027664882,0.71054153,848.65,847.69,1.5930455]
[1757027665082,0.79348833,848.67,847.69,1.5930455]
[1757027665083,0.71054153,848.64,847.69,1.5930455]
[1757027665283,0.71054153,848.63,847.71,1.5930455]
[1757027665488,0.71054153,848.62,847.72,1.5930455]
[1757027665684,0.71054153,848.61,847.72,1.5930455]
[1757027665884,0.71054153,848.6,847.72,1.5930455]
[1757027666084,0.71054153,848.59,847.72,1.5930455]
[1757027666284,0.71054153,848.58,847.72,1.5930455]
[1757027666485,0.71054153,848.57,847.75,1.5930455]
[1757027666786,0.71054153,848.56,847.27,1.79813683]
[1757027666991,0.71054153,848.55,847.27,1.79813683]
[1757027667189,0.71054153,848.54,847.27,1.79813683]
[1757027667389,0.71054153,848.53,847.27,1.79813683]
[1757027667689,0.71054153,848.52,847.27,1.79813683]
[1757027667989,0.71054153,848.51,847.27,1.79813683]
[1757027668189,0.71054153,848.5,847.27,1.79813683]
[1757027668488,0.71054153,848.49,847.27,1.79813683]
[1757027668685,0.71054153,848.48,847.27,1.79813683]
[1757027668889,0.71054153,848.47,847.27,1.79813683]
[1757027669187,0.71054153,848.46,847.27,1.79813683]
[1757027669392,0.71054153,848.45,847.27,1.79813683]
[1757027669586,0.71054153,848.44,847.27,1.79813683]
[1757027669790,0.71054153,848.43,847.27,1.79813683]
[1757027670090,0.71054153,848.42,847.27,1.79813683]
[1757027670286,0.71054153,848.41,847.27,1.79813683]
[1757027670491,0.71054153,848.4,847.27,1.79813683]
[1757027670786,0.71054153,848.39,847.27,1.79813683]
[1757027670988,0.71054153,848.38,847.27,1.79813683]
[1757027671185,0.71054153,848.37,847.27,1.79813683]
[1757027671388,0.71054153,848.36,847.27,1.79813683]
[1757027671586,0.20509677,848.75,847.27,1.79813683]
[1757027671786,0.71040735,848.74,847.27,1.79813683]
[1757027671993,0.71040735,848.73,847.27,1.79813683]
[1757027672184,0.71040735,848.72,847.27,0.20509133]
[1757027672389,0.71040735,848.71,847.27,0.20509133]
[1757027672594,0.71040735,848.7,847.27,0.20509133]
[1757027672790,0.71040735,848.69,847.27,0.20509133]
[1757027672991,0.71040735,848.68,847.27,0.20509133]
[1757027673287,0.20509677,848.75,847.27,0.20509133]
[1757027673288,0.71040735,848.67,847.27,0.20509133]
[1757027673486,0.71040735,848.66,847.27,0.20509133]
[1757027673790,0.71040735,848.65,847.27,0.20509133]
[1757027674087,0.71040735,848.64,847.27,0.20509133]
[1757027674292,0.71040735,848.63,847.27,0.20509133]
[1757027674487,0.71040735,848.62,847.27,0.20509133]
[1757027674688,0.71040735,848.61,847.27,0.20509133]
[1757027674894,0.71040735,848.6,847.27,0.20509133]
[1757027675091,0.71040735,848.59,847.27,0.20509133]
[1757027675290,0.71040735,848.58,847.26,1.5930455]
[1757027675487,0.71040735,848.57,847.4,0.2051276]
[1757027675701,0.71040735,848.56,847.4,0.2051276]
[1757027675890,0.71040735,848.55,847.4,0.2051276]
[1757027676088,0.71040735,848.54,847.4,0.2051276]
[1757027676387,0.71040735,848.53,847.4,0.2051276]
[1757027676591,0.71040735,848.52,847.5,1.5930455]
[1757027676785,0.71040735,848.51,847.5,1.5930455]
[1757027676990,0.71040735,848.5,847.5,1.5930455]
[1757027677189,0.71040735,848.49,847.5,1.5930455]
[1757027677387,0.71040735,848.48,847.5,1.5930455]
[1757027677591,0.71040735,848.47,847.49,1.5930455]
[1757027677790,0.71040735,848.46,847.49,1.5930455]
[1757027677990,0.71040735,848.45,847.49,1.5930455]
[1757027678188,0.71040735,848.44,847.49,1.5930455]
[1757027678389,0.71040735,848.43,847.49,1.5930455]
[1757027678593,0.71040735,848.42,847.49,1.5930455]
[1757027678888,0.71040735,848.41,847.49,1.5930455]
[1757027679092,0.71040735,848.4,847.49,1.5930455]
[1757027679291,0.71040735,848.39,847.49,1.5930455]
[1757027679594,0.71040735,848.38,847.49,1.5930455]
[1757027679791,0.71040735,848.37,847.49,1.5930455]
[1757027679991,0.20509677,848.75,847.49,1.5930455]
[1757027679992,0.71040735,848.36,847.49,1.5930455]
[1757027680196,0.20509677,848.75,847.49,1.5930455]
[1757027680492,0.71036388,848.74,847.49,1.5930455]
[1757027680693,0.71036388,848.73,847.49,1.5930455]
[1757027680891,0.71036388,848.72,847.49,1.5930455]
[1757027681095,0.71036388,848.71,847.49,1.5930455]
[1757027681291,0.71036388,848.7,847.49,1.5930455]
[1757027681592,0.71036388,848.69,847.49,1.5930455]
[1757027681795,0.71036388,848.68,847.52,1.5930455]
[1757027682005,0.71036388,848.67,847.53,1.5930455]
[1757027682196,0.71036388,848.66,847.53,1.5930455]
[1757027682494,0.71036388,848.65,847.53,1.5930455]
[1757027682697,0.71036388,848.64,847.56,1.5930455]
[1757027682992,0.71036388,848.63,847.58,1.5930455]
[1757027683196,0.71036388,848.62,847.58,1.5930455]
[1757027683491,0.71036388,848.61,847.58,1.5930455]
[1757027683696,0.71036388,848.6,847.58,1.5930455]
[1757027683892,0.71036388,848.59,847.58,1.5930455]
[1757027684096,0.71036388,848.58,847.58,1.5930455]
[1757027684293,0.71036388,848.57,847.58,1.5930455]
[1757027684497,0.71036388,848.56,847.5,1.5930455]
[1757027684695,0.71036388,848.55,847.5,1.5930455]
[1757027684895,0.71036388,848.54,847.5,1.5930455]
[1757027685092,0.71036388,848.53,847.5,1.5930455]
[1757027685294,0.71036388,848.52,847.6,1.5930455]
[1757027685493,0.71036388,848.51,847.6,1.5930455]
[1757027685695,0.71036388,848.5,847.6,1.5930455]
[1757027685894,0.71036388,848.49,847.6,1.5930455]
[1757027686097,0.71036388,848.48,847.6,1.5930455]
[1757027686297,0.71036388,848.47,847.61,1.5930455]
[1757027686498,0.71036388,848.46,847.61,1.5930455]
[1757027686694,0.71036388,848.45,847.65,1.5930455]
[1757027686897,0.71036388,848.44,847.65,1.5930455]
[1757027687092,0.79348833,848.72,847.65,1.5930455]
[1757027687093,0.71036388,848.43,847.65,1.5930455]
[1757027687292,0.71036388,848.42,847.65,1.5930455]
[1757027687593,0.71036388,848.41,847.65,1.5930455]
[1757027687797,0.71036388,848.4,847.65,1.5930455]
[1757027687997,0.71036388,848.39,847.65,1.5930455]
[1757027688294,0.71036388,848.38,847.65,1.5930455]
[1757027688496,0.71036388,848.37,847.65,1.5930455]